[Event "2nd Colonial Open 2021"]
[Site "Sterling"]
[Date "2021.04.04"]
[Round "4.2"]
[White "Miller, Daniel"]
[Black "Liang, Jason"]
[Result "1-0"]
[ECO "B15"]
[WhiteElo "2182"]
[BlackElo "2351"]
[Annotator "ChessBase"]
[PlyCount "171"]
[EventDate "2021.04.02"]
[EventType "swiss"]
[EventCountry "USA"]
[SourceTitle "playchess.com"]
[Source "ChessBase"]
[SourceQuality "1"]
[TimeControl "7200+30"]

1. e4 {[%emt 0:00:00]} c6 {[%emt 0:05:09]} 2. Nc3 {[%emt 0:00:09]} d5 {[%emt 0:00:33]} 3. Nf3 {[%emt 0:00:09]} dxe4 {[%emt 0:08:46]} 4. Nxe4 {[%emt 0:00:50]} Nf6 {[%emt 0:00:09]} 5. Nxf6+ {[%emt 0:03:01]} exf6 {[%emt 0:00:13]} 6. d4 {[%emt 0:06:03]} Bd6 {[%emt 0:00:25]} 7. Be2 {[%emt 0:00:08]} O-O {[%emt 0:00:18]} 8. O-O {[%emt 0:00:08]} Bg4 {[%emt 0:01:29]} 9. h3 {[%emt 0:11:50]} Be6 {[%emt 0:02:00]} 10. Re1 {[%emt 0:04:15]} Re8 {[%emt 0:00:18]} 11. c4 {[%emt 0:06:34]} Na6 {[%emt 0:03:54]} 12. Be3 {[%emt 0:06:11]} Qd7 {[%emt 0:04:53]} 13. d5 {[%emt 0:08:58]} cxd5 {[%emt 0:00:27]} 14. cxd5 {[%emt 0:00:05]} Bxd5 {[%emt 0:01:27]} 15. Nd4 {[%emt 0:00:08]} Nc7 {[%emt 0:02:20]} 16. Bg4 {[%emt 0:08:20]} Ne6 {[%emt 0:08:51]} 17. Qd2 {[%emt 0:18:32]} Bf8 {[%emt 0:09:26]} 18. Red1 {[%emt 0:03:49]} Red8 {[%emt 0:08:10]} 19. Rac1 {[%emt 0:10:13]} Qe8 {[%emt 0:03:02]} 20. Qa5 {[%emt 0:09:11]} b6 {[%emt 0:12:37]} 21. Qa6 {[%emt 0:00:37]} Rd7 {[%emt 0:06:41]} 22. a3 {[%emt 0:16:20]} Bb7 {[%emt 0:03:54]} 23. Qa4 {[%emt 0:06:30]} Rxd4 {[%emt 0:12:58]} 24. Rxd4 {[%emt 0:00:03]} Nxd4 {[%emt 0:00:10]} 25. Qxe8 {[%emt 0:03:42]} Rxe8 {[%emt 0:00:08]} 26. Bxd4 {[%emt 0:00:10]} Bd6 {[%emt 0:00:19]} 27. Rd1 {[%emt 0:00:43]} Rd8 {[%emt 0:01:39]} 28. Bc3 {[%emt 0:01:26]} f5 {[%emt 0:01:38]} 29. Be2 {[%emt 0:00:08]} Bc7 {[%emt 0:00:31]} 30. Rc1 {[%emt 0:00:57]} Bf4 {[%emt 0:00:16]} 31. Rd1 {[%emt 0:00:49]} Rxd1+ {[%emt 0:01:55]} 32. Bxd1 {[%emt 0:00:02]} Bd5 {[%emt 0:00:12]} 33. Kf1 {[%emt 0:01:40]} Bd6 {[%emt 0:01:05]} 34. Bc2 {[%emt 0:00:37]} f4 {[%emt 0:00:25]} 35. Bd1 {[%emt 0:01:02]} f6 {[%emt 0:00:14]} 36. f3 {[%emt 0:00:26]} Be5 {[%emt 0:00:43]} 37. Be2 {[%emt 0:02:36]} Kf7 {[%emt 0:00:48]} 38. Bd3 {[%emt 0:00:06]} h6 {[%emt 0:00:40]} 39. Ke2 {[%emt 0:00:28]} Bxc3 {[%emt 0:00:31]} 40. bxc3 {[%emt 0:00:02]} Ke6 {[%emt 0:00:10]} 41. Kd2 {[%emt 0:00:17]} Kd6 {[%emt 0:00:10]} 42. c4 {[%emt 0:00:44]} Be6 {[%emt 0:00:17]} 43. Kc3 {[%emt 0:00:11]} Kc5 {[%emt 0:00:05]} 44. Bf1 {[%emt 0:00:53]} g5 {[%emt 0:03:34]} 45. Bd3 {[%emt 0:01:08]} h5 {[%emt 0:04:19]} 46. Be2 {[%emt 0:00:03]} Bd7 {[%emt 0:00:51]} 47. Bd1 {[%emt 0:00:05]} Bf5 {[%emt 0:00:40]} 48. Be2 {[%emt 0:00:07]} Be6 {[%emt 0:00:06]} 49. Bd3 {[%emt 0:00:49]} a6 {[%emt 0:11:50]} 50. Be2 {[%emt 0:00:37]} Bf5 {[%emt 0:00:11]} 51. Bf1 {[%emt 0:00:07]} g4 {[%emt 0:03:40]} 52. hxg4 {[%emt 0:01:15]} hxg4 {[%emt 0:00:06]} 53. Be2 {[%emt 0:00:09]} gxf3 {[%emt 0:00:34]} 54. gxf3 {[%emt 0:00:14]} Bh3 {[%emt 0:00:04]} 55. Kd3 {[%emt 0:00:26]} f5 {[%emt 0:00:12]} 56. Kc3 {[%emt 0:00:11]} Bg2 {[%emt 0:00:18]} 57. Kd3 {[%emt 0:00:13]} Kd6 {[%emt 0:01:10]} 58. Kd4 {[%emt 0:01:15]} Ke6 {[%emt 0:02:14]} 59. c5 {[%emt 0:02:15]} b5 {[%emt 0:05:54]} 60. c6 {[%emt 0:00:02]} Kd6 {[%emt 0:00:11]} 61. c7 {[%emt 0:00:04]} Kxc7 {[%emt 0:00:11]} 62. Ke5 {[%emt 0:00:03]} Kb6 {[%emt 0:00:41]} 63. Kxf4 {[%emt 0:00:49]} Ka5 {[%emt 0:00:50]} 64. Bd1 {[%emt 0:01:01]} Bh3 {[%emt 0:01:05]} 65. Be2 {[%emt 0:01:56]} Ka4 {[%emt 0:01:44]} 66. Kg3 {[%emt 0:00:04]} Kxa3 {[%emt 0:00:04]} 67. Kxh3 {[%emt 0:00:09]} Kb4 {[%emt 0:00:02]} 68. f4 {[%emt 0:00:29]} a5 {[%emt 0:00:04]} 69. Bd3 {[%emt 0:00:08]} a4 {[%emt 0:00:47]} 70. Bxf5 {[%emt 0:00:06]} Kc3 {[%emt 0:02:56]} 71. Be6 {[%emt 0:00:52]} Kd4 {[%emt 0:00:45]} 72. Kg4 {[%emt 0:00:42]} b4 {[%emt 0:00:04]} 73. f5 {[%emt 0:00:39]} b3 {[%emt 0:00:56]} 74. f6 {[%emt 0:00:32]} Ke5 {[%emt 0:00:30]} 75. f7 {[%emt 0:00:22]} b2 {[%emt 0:00:30]} 76. Ba2 {[%emt 0:00:09]} a3 {[%emt 0:00:24]} 77. f8=Q {[%emt 0:00:08]} b1=Q {[%emt 0:00:09]} 78. Bxb1 {[%emt 0:00:09]} a2 {[%emt 0:00:06]} 79. Qf4+ {[%emt 0:00:27]} Kd5 {[%emt 0:00:07]} 80. Bxa2+ {[%emt 0:00:06]} Kc5 {[%emt 0:00:12]} 81. Kf5 {[%emt 0:00:37]} Kb5 {[%emt 0:00:07]} 82. Ke5 {[%emt 0:00:12]} Kc5 {[%emt 0:00:08]} 83. Bd5 {[%emt 0:00:15]} Kb5 {[%emt 0:00:07]} 84. Kd6 {[%emt 0:00:10]} Ka6 {[%emt 0:00:11]} 85. Qb4 {[%emt 0:00:13]} Ka7 {[%emt 0:00:05]} 86. Qb7# {[%emt 0:00:08]} 1-0

[Event "2nd Colonial Open 2021"]
[Site "Sterling"]
[Date "2021.04.04"]
[Round "4.3"]
[White "Park, Evan"]
[Black "Lee, Justin"]
[Result "0-1"]
[ECO "A31"]
[WhiteElo "2208"]
[BlackElo "1953"]
[Annotator "ChessBase"]
[PlyCount "68"]
[EventDate "2021.04.02"]
[EventType "swiss"]
[EventCountry "USA"]
[SourceTitle "playchess.com"]
[Source "ChessBase"]
[SourceQuality "1"]
[TimeControl "7200+30"]

1. e4 {[%emt 0:00:41]} c5 {[%emt 0:00:00]} 2. Nf3 {[%emt 0:00:07]} e6 {[%emt 0:00:00]} 3. d4 {[%emt 0:00:37]} cxd4 {[%emt 0:00:00]} 4. Nxd4 {[%emt 0:00:07]} a6 {[%emt 0:00:09]} 5. c4 {[%emt 0:01:13]} Nf6 {[%emt 0:00:19]} 6. Nc3 {[%emt 0:00:11]} Qc7 {[%emt 0:00:50]} 7. Be2 {[%emt 0:00:28]} b6 {[%emt 0:03:21]} 8. O-O {[%emt 0:02:54]} Bb7 {[%emt 0:07:01]} 9. f3 {[%emt 0:00:25]} d6 {[%emt 0:03:33]} 10. Be3 {[%emt 0:00:20]} Be7 {[%emt 0:00:24]} 11. a4 {[%emt 0:02:32]} O-O {[%emt 0:00:33]} 12. Qd2 {[%emt 0:04:35]} Nbd7 {[%emt 0:00:55]} 13. a5 {[%emt 0:06:35]} bxa5 {[%emt 0:06:28]} 14. Nb3 {[%emt 0:00:45]} d5 {[%emt 0:24:12]} 15. exd5 {[%emt 0:18:21]} exd5 {[%emt 0:01:35]} 16. Nxd5 {[%emt 0:03:34]} Bxd5 {[%emt 0:02:00]} 17. cxd5 {[%emt 0:00:19]} Bd6 {[%emt 0:11:02]} 18. f4 {[%emt 0:10:11]} Qb7 {[%emt 0:02:03]} 19. Bc4 {[%emt 0:09:52]} Nb6 {[%emt 0:00:42]} 20. Nxa5 {[%emt 0:03:15]} Nxc4 {[%emt 0:00:09]} 21. Nxb7 {[%emt 0:01:29]} Nxd2 {[%emt 1:05:14]} 22. Nxd6 {[%emt 0:02:29]} Nxf1 {[%emt 0:00:00]} 23. Rxf1 {[%emt 0:00:06]} Nxd5 {[%emt 0:00:00]} 24. Bc5 {[%emt 0:00:06]} Rab8 {[%emt 0:00:00]} 25. Ba3 {[%emt 0:00:17]} Rb3 {[%emt 0:00:00]} 26. g3 {[%emt 0:00:22]} Rd8 {[%emt 0:00:00]} 27. Rc1 {[%emt 0:01:36]} h5 {[%emt 0:00:00]} 28. Ne4 {[%emt 0:00:37]} Re8 {[%emt 0:00:00]} 29. Nd6 {[%emt 0:01:10]} Rd8 {[%emt 0:00:00]} 30. Ne4 {[%emt 0:00:05]} Re3 {[%emt 0:00:00]} 31. Nc5 {[%emt 0:00:56]} Nf6 {[%emt 0:00:00]} 32. Rc2 {[%emt 0:01:42]} Rc8 {[%emt 0:00:00]} 33. Kf2 {[%emt 0:00:43]} Rxa3 {[%emt 0:00:00]} 34. bxa3 {[%emt 0:00:03]} Rxc5 {[%emt 0:00:00]} 0-1

[Event "2nd Colonial Open 2021"]
[Site "Sterling"]
[Date "2021.04.04"]
[Round "4.4"]
[White "Peraino, Andrew"]
[Black "Chiu, Isaac"]
[Result "0-1"]
[ECO "B06"]
[WhiteElo "2029"]
[BlackElo "2195"]
[Annotator "NA"]
[PlyCount "72"]
[EventDate "2021.04.02"]
[EventType "swiss"]
[EventCountry "USA"]
[SourceTitle "playchess.com"]
[Source "ChessBase"]
[SourceQuality "1"]
[TimeControl "7200+30"]

1. e4 {[%emt 0:00:53]} g6 {[%emt 0:00:00]} 2. d4 {[%emt 0:00:18]} Bg7 {[%emt 0:00:00]} 3. f4 {[%emt 0:00:43]} c5 {[%emt 0:00:00]} 4. c3 {[%emt 0:00:11]} cxd4 {[%emt 0:00:00]} 5. cxd4 {[%emt 0:00:10]} d5 $11 {[%emt 0:00:00]} 6. e5 {[%emt 0:00:28]} Nc6 {[%emt 0:00:00]} 7. Nc3 {[%emt 0:04:59]} Nh6 {[%emt 0:00:00]} 8. Be3 {[%emt 0:00:40]} O-O {[%emt 0:00:00]} 9. Qd2 {[%emt 0:07:20]} f6 {[%emt 0:06:12]} 10. Be2 {[%emt 0:05:55]} Be6 {[%emt 0:08:20]} 11. Rc1 {[%emt 0:04:58]} Nf5 {[%emt 0:04:46]} 12. Nf3 {[%emt 0:02:30]} Bh6 {[%emt 0:02:31]} 13. g4 {[%emt 0:11:34]} Nxe3 {[%emt 0:02:36]} 14. Qxe3 {[%emt 0:00:01]} Bxg4 {[%emt 0:05:11]} 15. Nxd5 {[%emt 0:01:32]} Be6 {[%emt 0:10:03]} 16. Nc3 {[%emt 0:11:32]} fxe5 {[%emt 0:01:01]} 17. Ng5 {[%emt 0:00:37]} Bxg5 {[%emt 0:01:24]} 18. fxg5 {[%emt 0:00:21]} Qxd4 {[%emt 0:00:45]} 19. Qxd4 {[%emt 0:06:54]} exd4 {[%emt 0:00:20]} 20. Ne4 {[%emt 0:00:27]} Bxa2 {[%emt 0:04:14]} 21. Nc5 {[%emt 0:08:02]} Ne5 {[%emt 0:01:01]} 22. h4 {[%emt 0:05:39]} Bd5 {[%emt 0:00:20]} 23. Rh3 {[%emt 0:00:38]} Rac8 {[%emt 0:00:12]} 24. Kd2 {[%emt 0:00:47]} b6 {[%emt 0:00:52]} 25. Nd3 {[%emt 0:00:36]} Nxd3 {[%emt 0:00:29]} 26. Rxc8 {[%emt 0:00:52]} Rxc8 {[%emt 0:00:01]} 27. Bxd3 {[%emt 0:00:40]} e5 {[%emt 0:00:18]} 28. h5 {[%emt 0:00:23]} e4 {[%emt 0:00:54]} 29. Ba6 {[%emt 0:02:28]} Rf8 {[%emt 0:00:32]} 30. hxg6 {[%emt 0:00:52]} hxg6 {[%emt 0:00:07]} 31. Ke1 {[%emt 0:01:47]} Rf4 {[%emt 0:02:06]} 32. Rg3 {[%emt 0:00:18]} Kg7 {[%emt 0:00:46]} 33. Be2 {[%emt 0:09:04]} a5 {[%emt 0:01:09]} 34. Bb5 {[%emt 0:01:16]} Rh4 {[%emt 0:00:14]} 35. Rg2 {[%emt 0:07:45]} Rh1+ {[%emt 0:00:19]} 36. Ke2 {[%emt 0:00:07]} Rb1 {[%emt 0:00:21]} 0-1

[Event "2nd Colonial Open 2021"]
[Site "Sterling"]
[Date "2021.04.04"]
[Round "4.5"]
[White "Yanayt, Eugene"]
[Black "Mundayat, Abinav"]
[Result "1-0"]
[ECO "E05"]
[WhiteElo "2079"]
[BlackElo "1941"]
[Annotator "ChessBase"]
[PlyCount "61"]
[EventDate "2021.04.02"]
[EventType "swiss"]
[EventCountry "USA"]
[SourceTitle "playchess.com"]
[Source "ChessBase"]
[SourceQuality "1"]
[TimeControl "7200+30"]

1. d4 {[%emt 0:02:00]} Nf6 {[%emt 0:00:00]} 2. c4 {[%emt 0:00:16]} e6 {[%emt 0:00:00]} 3. g3 {[%emt 0:00:16]} d5 {[%emt 0:00:00]} 4. Nf3 {[%emt 0:00:16]} Be7 {[%emt 0:00:06]} 5. Bg2 {[%emt 0:00:17]} O-O {[%emt 0:00:13]} 6. O-O {[%emt 0:00:10]} dxc4 {[%emt 0:00:11]} 7. Qc2 {[%emt 0:00:20]} a6 {[%emt 0:00:24]} 8. a4 {[%emt 0:00:14]} Bd7 {[%emt 0:00:21]} 9. Ne5 {[%emt 0:01:03]} Bc6 {[%emt 0:00:23]} 10. Nxc6 {[%emt 0:00:53]} Nxc6 {[%emt 0:00:06]} 11. e3 {[%emt 0:04:42]} Nd5 {[%emt 0:00:54]} 12. a5 {[%emt 0:07:44]} b5 {[%emt 0:26:04]} 13. axb6 {[%emt 0:01:15]} cxb6 {[%emt 0:00:18]} 14. Qxc4 {[%emt 0:03:52]} Na5 {[%emt 0:00:28]} 15. Qa4 {[%emt 0:11:47]} Qe8 {[%emt 0:09:49]} 16. Qd1 {[%emt 0:12:34]} Qb5 {[%emt 0:09:07]} 17. e4 {[%emt 0:05:55]} Nf6 {[%emt 0:16:04]} 18. Nc3 {[%emt 0:02:48]} Qb3 {[%emt 0:00:14]} 19. Ra4 {[%emt 0:22:57]} Rfd8 {[%emt 0:08:10]} 20. d5 {[%emt 0:13:30]} Qxd1 {[%emt 0:19:03]} 21. Rxd1 {[%emt 0:00:12]} Nb3 {[%emt 0:00:08]} 22. Bf4 {[%emt 0:02:53]} b5 {[%emt 0:04:32]} 23. Ra2 {[%emt 0:00:03]} b4 {[%emt 0:05:22]} 24. Na4 {[%emt 0:02:25]} exd5 {[%emt 0:03:46]} 25. e5 {[%emt 0:06:21]} Nh5 {[%emt 0:03:39]} 26. Be3 {[%emt 0:11:57]} Rac8 {[%emt 0:11:17]} 27. Bxd5 {[%emt 0:02:46]} Bc5 {[%emt 0:01:53]} 28. Nxc5 {[%emt 0:05:07]} Nxc5 {[%emt 0:00:30]} 29. Bxc5 {[%emt 0:00:48]} Kh8 {[%emt 0:01:12]} 30. Be7 {[%emt 0:02:03]} Rd7 {[%emt 0:00:30]} 31. Bd6 {[%emt 0:00:09]} 1-0

[Event "2nd Colonial Open 2021"]
[Site "Sterling"]
[Date "2021.04.04"]
[Round "4.7"]
[White "Zhurbinsky, David"]
[Black "Zaloznyy, Mike"]
[Result "1-0"]
[ECO "C41"]
[WhiteElo "1823"]
[BlackElo "1996"]
[Annotator "ChessBase"]
[PlyCount "167"]
[EventDate "2021.04.02"]
[EventType "swiss"]
[EventCountry "USA"]
[SourceTitle "playchess.com"]
[Source "ChessBase"]
[SourceQuality "1"]
[TimeControl "7200+30"]

1. e4 {[%emt 0:00:00]} d6 {[%emt 0:01:43]} 2. d4 {[%emt 0:00:00]} Nf6 {[%emt 0:00:03]} 3. Nc3 {[%emt 0:00:00]} e5 {[%emt 0:00:08]} 4. Nf3 {[%emt 0:00:38]} Nbd7 {[%emt 0:00:07]} 5. Bc4 {[%emt 0:01:10]} Be7 {[%emt 0:00:20]} 6. Bxf7+ {[%emt 0:05:33]} Kxf7 {[%emt 0:00:08]} 7. Ng5+ {[%emt 0:00:03]} Kg8 {[%emt 0:00:14]} 8. Ne6 {[%emt 0:01:23]} Qe8 {[%emt 0:00:11]} 9. Nxc7 {[%emt 0:00:48]} Qg6 {[%emt 0:00:10]} 10. Nxa8 {[%emt 0:01:38]} Qxg2 {[%emt 0:00:07]} 11. Rf1 {[%emt 0:00:18]} exd4 {[%emt 0:00:06]} 12. Qxd4 {[%emt 0:06:21]} Ne5 {[%emt 0:00:12]} 13. f3 {[%emt 0:07:02]} Bh3 {[%emt 0:23:19]} 14. Qf2 {[%emt 0:04:40]} Qxf1+ {[%emt 0:04:38]} 15. Qxf1 {[%emt 0:00:05]} Bxf1 {[%emt 0:00:13]} 16. Kxf1 {[%emt 0:00:15]} Nxf3 {[%emt 0:00:37]} 17. Bf4 {[%emt 0:05:31]} Nh5 {[%emt 0:28:34]} 18. Bg3 {[%emt 0:16:03]} Nxg3+ {[%emt 0:01:58]} 19. hxg3 {[%emt 0:00:29]} Nd4 {[%emt 0:00:04]} 20. Nd5 {[%emt 0:03:19]} Kf7 {[%emt 0:07:17]} 21. Nac7 {[%emt 0:01:31]} Nxc2 {[%emt 0:08:08]} 22. Rc1 {[%emt 0:00:47]} Nd4 {[%emt 0:00:52]} 23. Nxe7 {[%emt 0:01:41]} Kxe7 {[%emt 0:00:24]} 24. Nd5+ {[%emt 0:00:28]} Ke6 {[%emt 0:01:01]} 25. Rc7 {[%emt 0:00:56]} Rf8+ {[%emt 0:04:49]} 26. Nf4+ {[%emt 0:06:04]} Kf6 {[%emt 0:00:58]} 27. Rxb7 {[%emt 0:09:02]} g5 {[%emt 0:01:00]} 28. Nd3 {[%emt 0:06:43]} Kg6+ {[%emt 0:05:25]} 29. Kg2 {[%emt 0:00:43]} Rf3 {[%emt 0:03:43]} 30. Nf2 {[%emt 0:00:55]} Rf7 {[%emt 0:01:34]} 31. Rb8 {[%emt 0:05:59]} Rc7 {[%emt 0:08:11]} 32. Rd8 {[%emt 0:04:52]} Rc6 {[%emt 0:00:54]} 33. Rg8+ {[%emt 0:01:37]} Kf6 {[%emt 0:04:24]} 34. Ng4+ {[%emt 0:00:49]} Kf7 {[%emt 0:03:26]} 35. Rxg5 {[%emt 0:01:36]} Rc2+ {[%emt 0:00:28]} 36. Kh3 {[%emt 0:00:27]} Rxb2 {[%emt 0:03:17]} 37. Rd5 {[%emt 0:01:48]} Ne6 {[%emt 0:02:59]} 38. Nh6+ {[%emt 0:04:12]} Kf6 {[%emt 0:02:14]} 39. Ng4+ {[%emt 0:05:47]} Kf7 {[%emt 0:04:18]} 40. Ra5 {[%emt 0:01:47]} Kg6 {[%emt 0:01:16]} 41. Kh4 {[%emt 0:04:04]} Rb1 {[%emt 0:04:40]} 42. Nf2 {[%emt 0:03:19]} Rb2 {[%emt 0:02:49]} 43. Nh3 {[%emt 0:02:48]} Re2 {[%emt 0:01:13]} 44. Ra4 {[%emt 0:01:19]} Rh2 {[%emt 0:01:16]} 45. Ra6 {[%emt 0:02:22]} Re2 {[%emt 0:00:45]} 46. Rxd6 {[%emt 0:04:33]} Rxe4+ {[%emt 0:00:01]} 47. g4 {[%emt 0:00:29]} Kf6 {[%emt 0:01:25]} 48. Ra6 {[%emt 0:01:23]} h6 {[%emt 0:01:29]} 49. Rxa7 {[%emt 0:01:07]} Nd4 {[%emt 0:00:24]} 50. Ra6+ {[%emt 0:02:38]} Kg7 {[%emt 0:00:06]} 51. Kg3 {[%emt 0:00:46]} Re3+ {[%emt 0:00:19]} 52. Kg2 {[%emt 0:00:07]} Ne6 {[%emt 0:01:16]} 53. a4 {[%emt 0:01:06]} Re2+ {[%emt 0:00:36]} 54. Kg3 {[%emt 0:01:03]} Re3+ {[%emt 0:00:07]} 55. Kf2 {[%emt 0:00:49]} Re5 {[%emt 0:00:57]} 56. Kf3 {[%emt 0:00:45]} Nd4+ {[%emt 0:00:27]} 57. Kf4 {[%emt 0:00:02]} Re2 {[%emt 0:00:32]} 58. Rd6 {[%emt 0:00:54]} Nb3 {[%emt 0:00:34]} 59. Kf5 {[%emt 0:00:44]} Nc5 {[%emt 0:00:30]} 60. Nf4 {[%emt 0:00:58]} Rf2 {[%emt 0:00:26]} 61. a5 {[%emt 0:00:23]} Ra2 {[%emt 0:00:27]} 62. Rd5 {[%emt 0:00:50]} Nb3 {[%emt 0:00:25]} 63. Nh5+ {[%emt 0:01:09]} Kf7 {[%emt 0:00:43]} 64. Rd7+ {[%emt 0:00:20]} Kf8 {[%emt 0:00:01]} 65. Kg6 {[%emt 0:01:11]} Nc5 {[%emt 0:01:32]} 66. Ra7 {[%emt 0:00:57]} Ke8 {[%emt 0:00:00]} 67. Kxh6 {[%emt 0:00:19]} Nd7 {[%emt 0:00:25]} 68. g5 {[%emt 0:00:36]} Rh2 {[%emt 0:00:05]} 69. a6 {[%emt 0:01:13]} Ne5 {[%emt 0:00:18]} 70. g6 {[%emt 0:00:52]} Nxg6 {[%emt 0:00:43]} 71. Kxg6 {[%emt 0:00:05]} Ra2 {[%emt 0:00:01]} 72. Ng7+ {[%emt 0:01:31]} Kd8 {[%emt 0:00:03]} 73. Ne6+ {[%emt 0:00:11]} Kc8 {[%emt 0:00:23]} 74. Kf7 {[%emt 0:00:40]} Rf2+ {[%emt 0:01:36]} 75. Ke7 {[%emt 0:00:32]} Rb2 {[%emt 0:00:48]} 76. Ra8+ {[%emt 0:00:19]} Rb8 {[%emt 0:00:01]} 77. Rxb8+ {[%emt 0:00:11]} Kxb8 {[%emt 0:00:04]} 78. Nc5 {[%emt 0:00:14]} Ka7 {[%emt 0:01:03]} 79. Kd7 {[%emt 0:00:22]} Ka8 {[%emt 0:00:06]} 80. Kc6 {[%emt 0:00:08]} Ka7 {[%emt 0:00:15]} 81. Kc7 {[%emt 0:00:07]} Ka8 {[%emt 0:00:10]} 82. Kb6 {[%emt 0:00:03]} Kb8 {[%emt 0:00:13]} 83. Ne6 {[%emt 0:00:05]} Ka8 {[%emt 0:00:28]} 84. Nc7+ {[%emt 0:00:03]} 1-0

[Event "2nd Colonial Open 2021"]
[Site "Sterling"]
[Date "2021.04.04"]
[Round "4.8"]
[White "Lu, Jason"]
[Black "Kanli, Alperen"]
[Result "1/2-1/2"]
[ECO "B11"]
[WhiteElo "2068"]
[BlackElo "1911"]
[Annotator "ChessBase"]
[PlyCount "112"]
[EventDate "2021.04.02"]
[EventType "swiss"]
[EventCountry "USA"]
[SourceTitle "playchess.com"]
[Source "ChessBase"]
[SourceQuality "1"]
[TimeControl "7200+30"]

1. e4 {[%emt 0:01:02]} c6 {[%emt 0:00:00]} 2. Nf3 {[%emt 0:00:08]} d5 {[%emt 0:00:00]} 3. Nc3 {[%emt 0:00:06]} Bg4 {[%emt 0:00:13]} 4. h3 {[%emt 0:00:08]} Bh5 {[%emt 0:00:05]} 5. exd5 {[%emt 0:01:44]} cxd5 {[%emt 0:00:05]} 6. Bb5+ {[%emt 0:00:48]} Nc6 {[%emt 0:00:07]} 7. g4 {[%emt 0:00:17]} Bg6 {[%emt 0:00:06]} 8. Ne5 {[%emt 0:00:11]} Rc8 {[%emt 0:00:01]} 9. d4 {[%emt 0:00:47]} e6 {[%emt 0:00:11]} 10. Bf4 {[%emt 0:18:49]} f6 {[%emt 0:02:29]} 11. Nxg6 {[%emt 0:04:09]} hxg6 {[%emt 0:00:53]} 12. Qd3 {[%emt 0:02:37]} Kf7 {[%emt 0:00:03]} 13. Bxc6 {[%emt 0:04:54]} bxc6 {[%emt 0:04:11]} 14. Ne2 {[%emt 0:02:04]} Bd6 {[%emt 0:05:41]} 15. Qg3 {[%emt 0:07:17]} Bxf4 {[%emt 0:12:26]} 16. Nxf4 {[%emt 0:00:26]} Ne7 {[%emt 0:00:08]} 17. Nd3 {[%emt 0:13:00]} Qc7 {[%emt 0:05:14]} 18. Qxc7 {[%emt 0:07:03]} Rxc7 {[%emt 0:00:01]} 19. f4 {[%emt 0:00:21]} Nc8 {[%emt 0:01:45]} 20. O-O-O {[%emt 0:01:54]} Nd6 {[%emt 0:03:31]} 21. b3 {[%emt 0:15:11]} Ne4 {[%emt 0:01:26]} 22. Kb2 {[%emt 0:00:16]} g5 {[%emt 0:02:43]} 23. Rde1 {[%emt 0:03:22]} c5 {[%emt 0:06:23]} 24. dxc5 {[%emt 0:03:12]} gxf4 {[%emt 0:00:20]} 25. Nxf4 {[%emt 0:03:12]} g5 {[%emt 0:06:23]} 26. Nd3 {[%emt 0:04:50]} Nxc5 {[%emt 0:00:03]} 27. Re3 {[%emt 0:00:26]} Ne4 {[%emt 0:04:14]} 28. c4 {[%emt 0:08:01]} dxc4 {[%emt 0:01:48]} 29. Ne5+ {[%emt 0:01:00]} fxe5 {[%emt 0:00:05]} 30. Rxe4 {[%emt 0:00:04]} cxb3 {[%emt 0:03:51]} 31. Rxe5 {[%emt 0:00:07]} Kf6 {[%emt 0:00:45]} 32. Rhe1 {[%emt 0:01:54]} Rc6 {[%emt 0:03:51]} 33. axb3 {[%emt 0:01:13]} Rxh3 {[%emt 0:00:04]} 34. Ra5 {[%emt 0:02:40]} Rb6 {[%emt 0:01:57]} 35. Rf1+ {[%emt 0:03:23]} Kg6 {[%emt 0:01:09]} 36. Rxa7 {[%emt 0:00:13]} Rhxb3+ {[%emt 0:00:13]} 37. Kc2 {[%emt 0:01:06]} R3b4 {[%emt 0:01:01]} 38. Raf7 {[%emt 0:01:19]} e5 {[%emt 0:00:31]} 39. Re7 {[%emt 0:02:39]} Rxg4 {[%emt 0:02:38]} 40. Rxe5 {[%emt 0:00:09]} Rg3 {[%emt 0:00:11]} 41. Rf8 {[%emt 0:02:21]} Ra6 {[%emt 0:01:05]} 42. Kb2 {[%emt 0:02:18]} Rf6 {[%emt 0:02:32]} 43. Rd8 {[%emt 0:03:22]} Rf2+ {[%emt 0:03:46]} 44. Kc1 {[%emt 0:00:12]} Rg1+ {[%emt 0:00:05]} 45. Rd1 {[%emt 0:00:02]} Rxd1+ {[%emt 0:00:07]} 46. Kxd1 {[%emt 0:00:02]} Kh5 {[%emt 0:00:16]} 47. Ke1 {[%emt 0:01:05]} Rf8 {[%emt 0:00:09]} 48. Re7 {[%emt 0:01:50]} Kh4 {[%emt 0:00:10]} 49. Rh7+ {[%emt 0:00:17]} Kg3 {[%emt 0:00:02]} 50. Rg7 {[%emt 0:00:17]} g4 {[%emt 0:00:05]} 51. Rh7 {[%emt 0:00:44]} Kg2 {[%emt 0:00:06]} 52. Rg7 {[%emt 0:00:02]} g3 {[%emt 0:00:07]} 53. Re7 {[%emt 0:00:21]} Kg1 {[%emt 0:01:11]} 54. Re6 {[%emt 0:01:01]} g2 {[%emt 0:01:28]} 55. Re7 {[%emt 0:00:08]} Rh8 {[%emt 0:00:19]} 56. Rg7 {[%emt 0:00:39]} Kh2 {[%emt 0:01:06]} 1/2-1/2